bitfinex/quotes_ETHUSD_20241123
["timestamp","ask_amount","ask_price","bid_price","bid_amount"]
[1732389684361,0.27267972,3426.3,3426.1,2.91876]
[1732389684562,0.27267972,3426.2,3426.1,2.91876]
[1732389684785,0.33281953,3426.2,3426.1,2.91876]
[1732389685004,0.27267972,3426.2,3426.1,2.91876]
[1732389690007,0.27267972,3426.2,3426.1,3.21046]
[1732389690978,0.27267972,3426.2,3426.1,4.94629644]
[1732389691590,9.72e-06,3426.2,3426.1,7.94629644]
[1732389691930,9.72e-06,3426.2,3426.1,11.29316076]
[1732389692525,1.75,3426.9,3426.8,4.03797]
[1732389694029,1.72227092,3426.9,3426.8,4.03797]
[1732389695099,1.72227092,3426.9,3426.8,3.20987]
[1732389695330,1.77902,3426.9,3426.8,3.20987]
[1732389699022,1.72227092,3426.9,3426.8,3.20987]
[1732389703701,1.99423865,3426.9,3426.8,3.20987]
[1732389703897,2.05104333,3426.9,3426.8,9.01742016]
[1732389704120,1.99423865,3426.9,3426.8,9.01742016]
[1732389704635,1.99423865,3426.9,3426.8,7.7933599]
[1732389705041,8.65e-06,3426.9,3426.8,11.12724988]
[1732389705215,0.6553,3428.0,3427.9,2.91723]
[1732389706760,0.6553,3428.0,3427.8,0.2917]
[1732389707065,0.6553,3428.0,3427.2,0.2917]
[1732389707264,0.6553,3427.8,3427.4,2.91765]
[1732389707563,0.55,3428.8,3427.4,2.91765]
[1732389708165,0.55,3428.6,3427.4,2.91765]
[1732389708333,1.16586,3428.2,3427.4,2.91765]
[1732389708652,0.05377194,3428.1,3427.4,2.91765]
[1732389708960,0.05377194,3428.1,3427.3,0.1]
[1732389709265,0.05377194,3428.1,3428.0,3.20885]
[1732389709759,1.16586,3428.2,3428.1,3.20876]
[1732389709965,0.005,3429.2,3428.5,2.91665]
[1732389710120,1.165765,3429.1,3428.6,2.91662]
[1732389710320,0.05151597,3429.0,3428.6,2.66597296]
[1732389710760,1.170735,3429.2,3428.6,2.66597296]
[1732389711063,0.04987885,3428.9,3428.6,2.66597296]
[1732389711356,0.04982459,3428.8,3428.7,2.91655]
[1732389711560,0.04982459,3428.8,3428.1,0.32086741]
[1732389711776,1.170735,3429.2,3428.7,2.91655]
[1732389712279,0.04998736,3429.1,3428.7,2.91655]
[1732389712478,0.04998736,3429.1,3428.5,2.91671]
[1732389712771,0.04998736,3429.1,3428.6,2.91658]
[1732389714276,0.005,3429.2,3428.6,2.91658]
[1732389714478,0.4804471,3429.2,3428.6,2.91658]
[1732389714838,0.04998736,3429.1,3428.6,2.91658]
[1732389715242,0.04998736,3429.1,3428.7,2.91653]
[1732389715860,0.04998736,3429.1,3428.7,2.75703226]
[1732389716285,0.04998736,3429.1,3428.7,2.60625705]
[1732389716490,0.04998736,3429.1,3428.5,2.91666]
[1732389716703,0.04998736,3429.1,3429.0,2.9163]
[1732389717197,0.005,3429.2,3429.1,3.20721]
[1732389717408,0.27647966,3429.2,3429.1,4.0422709]
[1732389717602,0.27647966,3429.2,3429.1,4.01311]
[1732389717967,0.005,3429.2,3429.1,4.14226934]
[1732389718407,0.27645428,3429.2,3429.1,7.14226934]
[1732389718607,0.27645428,3429.2,3429.1,7.11311]
[1732389719322,0.27645428,3429.2,3429.1,6.82211]
[1732389721001,4.6767,3430.0,3429.9,2.91553]
[1732389721209,4.94799004,3430.0,3429.9,2.91553]
[1732389721391,5.49335493,3430.0,3429.9,2.91553]
[1732389723292,4.99855593,3430.0,3429.9,2.91553]
[1732389725881,4.99855593,3430.0,3429.9,3.01553]
[1732389726287,4.94799004,3430.0,3429.9,3.01553]
[1732389726738,4.99702784,3430.0,3429.9,3.01553]
[1732389727938,4.99622741,3430.0,3429.9,3.01553]
[1732389728138,4.7257378,3430.0,3429.9,3.01553]
[1732389728339,4.7257378,3430.0,3429.9,3.83653]
[1732389728839,4.7257378,3430.0,3429.9,4.51466516]
[1732389729138,0.1519013,3430.9,3430.8,2.91477]
[1732389729353,0.42214443,3430.9,3430.8,3.20577]
[1732389730152,0.42214443,3430.9,3430.8,0.291]
[1732389730368,0.47003552,3430.9,3430.3,0.291]
[1732389730645,0.27024313,3430.8,3430.3,0.291]
[1732389730851,0.27024313,3430.7,3430.1,0.291]
[1732389731051,0.27024313,3430.6,3430.3,2.91519]
[1732389731221,0.1519013,3430.9,3430.5,2.91502]
[1732389731555,0.1519013,3430.9,3430.8,3.73577]
[1732389731556,0.1239913,3430.9,3430.8,3.73577]
[1732389731760,0.1239913,3430.9,3430.8,4.02677]
[1732389731910,0.1239913,3430.9,3430.8,4.05591202]
[1732389732112,0.1239913,3430.9,3430.8,4.02677]
[1732389732620,0.1239913,3430.9,3430.8,4.05591136]
[1732389732822,0.1239913,3430.9,3430.8,4.02677]
[1732389733816,0.1239913,3430.9,3430.8,4.12677]
[1732389734957,0.1239913,3430.9,3430.7,2.91484]
[1732389735129,0.1239913,3430.9,3430.5,1.112]
[1732389735313,0.1239913,3430.9,3430.5,2.91502]
[1732389735517,0.1239913,3430.9,3430.5,2.915]
[1732389735518,0.31342206,3430.8,3430.5,2.915]
[1732389735753,0.27002777,3430.7,3430.5,2.915]
[1732389736050,0.1239913,3430.9,3430.6,2.91494]
[1732389736254,0.27005363,3430.8,3430.6,2.91494]
[1732389736464,0.27005363,3430.7,3430.5,2.91501]
[1732389736754,0.1239913,3430.9,3430.4,0.1]
[1732389737047,0.31345717,3430.8,3430.4,3.01507]
[1732389737253,0.27006288,3430.7,3430.4,0.1]
[1732389737619,0.1239913,3430.9,3430.6,2.91494]
[1732389737817,0.27014232,3430.8,3430.6,2.91494]
[1732389738018,0.1239913,3430.9,3430.8,3.73577]
[1732389738259,0.39420576,3430.9,3430.8,3.73577]
[1732389738418,0.1239913,3430.9,3430.8,3.73577]
[1732389739056,0.39420362,3430.9,3430.8,3.73577]
[1732389739258,0.3942724,3430.9,3430.8,3.73577]
[1732389739825,0.1239913,3430.9,3430.8,3.73577]
[1732389740741,0.1239913,3430.9,3430.8,4.43997389]
[1732389741157,0.1239913,3430.9,3430.8,3.61897389]
[1732389741457,0.1239913,3430.9,3430.8,7.73097389]
[1732389741654,0.1239913,3430.9,3430.8,7.701832]
[1732389741880,0.1239913,3430.9,3430.8,7.801832]
[1732389742652,0.1239913,3430.9,3430.8,4.12677]
[1732389743951,0.1239913,3430.9,3430.4,3.58833286]
[1732389743952,0.1239913,3430.9,3430.5,0.1]
[1732389744285,0.2705673,3430.8,3430.5,0.1]
[1732389744643,0.04200359,3430.7,3430.5,0.1]
[1732389744848,0.2705673,3430.6,3430.5,0.1]
[1732389745088,0.04194939,3430.6,3430.5,0.1]
[1732389745290,0.2705673,3430.7,3430.5,0.1]
[1732389745527,0.2705673,3430.6,3430.5,0.1]
[1732389745988,0.2705673,3430.8,3430.5,0.391]
[1732389746206,0.04194939,3430.6,3430.5,0.391]
[1732389746485,0.2705673,3430.6,3430.5,0.391]
[1732389746650,0.2705673,3430.6,3430.5,0.291]
[1732389746855,0.31321594,3430.6,3430.5,0.291]
[1732389747088,0.31321594,3430.6,3430.4,0.291]
[1732389747390,0.27126655,3430.5,3430.4,0.291]
[1732389747562,0.31316173,3430.5,3430.4,0.291]
[1732389747961,0.27126655,3430.5,3430.4,3.20611]
[1732389748165,0.1239913,3430.9,3430.8,0.1]
[1732389748372,0.16610329,3430.9,3430.8,0.1]
[1732389748553,0.1239913,3430.9,3430.6,0.291]
[1732389748746,0.27148686,3430.8,3430.6,0.291]
[1732389748982,0.31349045,3430.7,3430.6,0.291]
[1732389749298,0.04060347,3430.7,3430.4,0.1]
[1732389749501,0.04060347,3430.7,3430.5,0.291]
[1732389749797,0.58649295,3431.3,3430.7,0.1]
[1732389750358,0.01837496,3431.3,3431.1,0.1]
[1732389750682,0.01837496,3431.3,3431.1,3.01451]
[1732389750881,0.01837496,3431.3,3431.1,3.04365174]
[1732389751057,0.01837496,3431.3,3431.1,3.33465174]
[1732389752053,0.01837496,3431.3,3431.2,2.91443]
[1732389752289,0.01837496,3431.3,3431.2,3.20543]
[1732389752604,0.01837496,3431.3,3430.9,0.291]
[1732389752781,0.0592923,3431.3,3430.8,3.04390443]
[1732389753660,0.0592923,3431.3,3430.9,0.291]
[1732389754678,0.0592923,3431.3,3430.8,0.1]
[1732389754885,0.35663953,3431.3,3430.8,3.01471]
[1732389755080,0.0592923,3431.3,3430.7,0.291]
[1732389755912,0.0592923,3431.3,3430.6,0.291]
[1732389756066,0.64805153,3431.3,3430.6,0.291]
[1732389756411,0.64805153,3431.3,3430.6,3.20593]
[1732389757380,0.64805153,3431.3,3430.7,3.20582]
[1732389757595,0.64805153,3431.3,3430.7,0.391]
[1732389757884,0.0592923,3431.3,3430.9,2.91463]
[1732389758434,0.0592923,3431.3,3431.1,2.9145]
[1732389758575,0.0592923,3431.3,3431.2,2.91443]
[1732389758906,0.01837496,3431.3,3431.2,2.91443]
[1732389759628,0.05924187,3431.3,3431.2,2.91443]
[1732389760091,0.05924187,3431.3,3431.1,0.1]
[1732389760296,0.05924187,3431.3,3431.1,3.0145]
[1732389760724,0.05924187,3431.3,3431.2,2.91443]
[1732389761231,0.33140077,3431.3,3431.2,2.91443]
[1732389761583,0.05924187,3431.3,3431.2,2.91443]
[1732389761805,0.29060229,3431.3,3431.0,0.291]
[1732389762015,0.27222733,3431.2,3431.0,0.291]
[1732389762221,0.27222733,3431.1,3430.8,0.008479]
[1732389762427,0.27222733,3431.0,3430.8,0.008479]
[1732389762725,0.27222733,3431.0,3430.8,2.923249]
[1732389762726,0.27222733,3430.9,3430.8,2.923249]
[1732389762880,0.27222733,3430.9,3430.8,3.738849]
[1732389763082,0.27222733,3430.9,3430.8,2.923249]
[1732389764355,0.27222733,3430.9,3430.8,3.214249]
[1732389765615,0.01837496,3431.3,3431.1,2.91443]
[1732389765804,0.27226024,3431.2,3431.0,2.91453]
[1732389766137,0.27226024,3431.1,3431.0,2.91453]
[1732389766835,0.27226024,3431.1,3430.9,2.91468]
[1732389767053,0.27226024,3431.0,3430.8,0.299479]
[1732389767197,0.27226024,3430.9,3430.8,0.299479]
[1732389767543,0.27226024,3430.9,3430.8,3.214249]
[1732389767544,0.31292566,3430.9,3430.8,3.214249]
[1732389768066,0.27226024,3430.9,3430.8,3.214249]
[1732389770506,0.31292566,3430.9,3430.8,0.008479]
[1732389771137,0.31292566,3430.9,3429.9,0.7672]
[1732389771138,2.91478,3430.8,3429.9,0.7672]
[1732389771404,3.2276886,3430.7,3429.6,3.78296]
[1732389771607,2.91533,3430.2,3429.2,3.0161]
[1732389771854,2.91533,3430.2,3429.4,2.91594]
[1732389771855,0.27226024,3430.1,3429.4,2.91594]
[1732389772026,0.27226024,3430.0,3429.4,2.91594]
[1732389772226,0.27226024,3429.9,3429.2,2.9161]
[1732389772457,0.27226024,3429.8,3429.2,2.9161]
[1732389772659,0.27222229,3429.7,3429.2,3.2071]
[1732389772961,0.03997238,3429.7,3429.2,3.2071]
[1732389773262,0.27222593,3429.6,3429.2,3.3071]
[1732389773415,0.27222593,3429.5,3429.2,3.3071]
[1732389773617,0.27222593,3429.4,3429.3,2.91598]
[1732389774221,0.27222593,3429.4,3429.3,3.20698]
[1732389774557,0.27222593,3429.4,3429.3,0.291]
[1732389774754,0.27222593,3429.4,3429.3,3.20704]
[1732389774969,0.3108343,3429.4,3429.3,3.20704]
[1732389776059,0.27222593,3429.4,3429.3,3.23619761]
[1732389776442,0.2717519,3429.4,3429.3,3.20704]
[1732389778563,0.2669719,3429.4,3429.3,3.20704]
[1732389779388,0.2669719,3429.4,3429.3,2.91604]
[1732389780764,0.30442157,3429.4,3429.1,2.91614]
[1732389780972,0.03744967,3429.4,3429.1,2.91614]
[1732389781175,2.91584,3429.6,3428.8,3.0]
[1732389781386,0.62065591,3429.5,3428.8,3.0]
[1732389781588,0.62065591,3429.5,3428.7,3.1]
[1732389781958,0.62065591,3429.5,3428.9,2.91638]
[1732389782403,0.03750391,3429.5,3428.9,2.91638]
[1732389782691,2.9157,3429.7,3428.9,2.91638]
[1732389782855,0.0373202,3429.4,3428.9,2.91638]
[1732389783056,2.9157,3429.7,3428.9,3.01638]
[1732389783291,0.03726596,3429.3,3429.0,2.91624]
[1732389783592,0.03721171,3429.2,3428.9,0.12916064]
[1732389783779,2.91545,3430.0,3429.2,0.7672]
[1732389783967,0.03759138,3429.9,3429.2,0.7672]
[1732389784168,2.91579,3429.6,3428.8,2.91641]
[1732389784365,0.32895477,3429.5,3428.8,3.01641]
[1732389784692,0.32895477,3429.5,3428.7,3.291]
[1732389784862,2.91601,3429.4,3428.7,3.0]
[1732389785193,2.95331729,3429.3,3428.6,2.91663]
[1732389785377,0.03726729,3429.3,3428.5,2.91664]
[1732389785690,2.91573,3429.7,3428.9,2.91635]
[1732389785863,2.91573,3429.7,3429.0,2.91628]
[1732389786068,0.03743001,3429.6,3429.1,2.91617]
[1732389786266,0.591553,3429.8,3429.1,2.91617]
[1732389786603,0.591553,3429.8,3428.8,0.1]
[1732389786604,0.03737577,3429.5,3429.0,2.91629]
[1732389786803,3.0,3430.2,3429.0,2.91629]
[1732389786804,0.03729961,3429.4,3429.0,2.91629]
[1732389787101,2.91577,3429.7,3429.0,2.91629]
[1732389787694,0.03740809,3429.6,3428.8,2.91639]
[1732389787893,2.95319809,3429.6,3428.8,2.91639]
[1732389788192,0.03735385,3429.5,3428.9,2.91637]
[1732389788366,0.36182916,3429.5,3428.9,2.91637]
[1732389788564,0.36182916,3429.5,3429.1,0.00425]
[1732389789655,0.36182916,3429.5,3429.2,2.91612]
[1732389789656,0.03735385,3429.5,3429.2,2.91612]
[1732389789877,0.03735385,3429.5,3429.3,2.91604]
[1732389790151,0.03730094,3429.4,3429.3,2.91604]
[1732389790357,2.9152,3430.3,3429.3,3.83174]
[1732389790633,3.0,3430.8,3429.4,2.9159]
[1732389790634,3.53493691,3430.2,3429.4,2.9159]
[1732389790753,2.95190791,3430.2,3429.4,3.2069]
[1732389790955,0.03662791,3430.2,3429.4,3.2069]
[1732389791155,2.91524,3430.3,3429.5,2.91587]
[1732389791376,0.3307337,3430.2,3429.6,2.62421]
[1732389791590,0.61611037,3430.1,3429.6,2.62421]
[1732389791779,0.03544947,3430.0,3429.5,2.62421]
[1732389791984,0.03544947,3430.0,3429.4,0.291]
[1732389791985,2.95090947,3430.0,3429.4,0.291]
[1732389792185,0.67774956,3429.9,3429.4,0.291]
[1732389792389,0.03534101,3429.8,3429.5,2.62426]
[1732389792560,2.91513,3430.4,3429.6,2.62419]
[1732389792755,0.291513,3430.3,3429.7,2.62408]
[1732389792991,0.32712512,3430.3,3429.7,2.62408]
[1732389793201,0.32712512,3430.3,3430.0,2.62384]
[1732389793360,0.03561212,3430.3,3430.0,2.62384]
[1732389793564,2.91491,3430.7,3430.0,2.62384]
[1732389793905,0.03579402,3430.6,3429.9,2.62396]
[1732389794105,2.91506,3430.5,3429.7,2.91509]
[1732389794264,2.91527,3430.3,3429.7,2.62413]
[1732389794468,3.3342271,3430.4,3429.6,2.6242]
[1732389794698,0.03557718,3430.2,3429.6,2.6242]
[1732389794906,0.66057769,3430.3,3429.7,2.62412]
[1732389795199,0.03558581,3430.2,3429.7,2.62412]
[1732389795373,0.43149773,3430.2,3429.7,2.62412]
[1732389795573,0.43149773,3430.2,3429.7,2.72412]
[1732389795902,0.03558581,3430.2,3429.9,2.62392]
[1732389796105,0.03558581,3430.2,3429.7,2.72412]
[1732389796268,2.91503,3430.5,3429.8,2.62405]
[1732389796465,0.03553159,3430.1,3429.9,2.62397]
[1732389796801,0.03547737,3430.0,3429.8,2.62401]
[1732389797105,0.03547737,3430.0,3429.7,2.72413]
[1732389797106,2.91508,3430.5,3429.7,2.62413]
[1732389797261,0.03542314,3429.9,3429.8,2.62405]
[1732389797465,2.91508,3430.5,3429.8,2.62405]
[1732389797666,0.03542314,3429.9,3429.8,2.62405]
[1732389797867,0.61797525,3430.4,3429.8,2.62405]
[1732389798152,0.03542314,3429.9,3429.8,2.62405]
[1732389798275,2.91495,3430.6,3429.8,2.62405]
[1732389798481,2.91495,3430.6,3429.9,2.62396]
[1732389798667,2.91517,3430.4,3429.6,2.62415]
[1732389799204,0.03564002,3430.3,3429.7,2.62411]
[1732389799509,0.3833782,3430.2,3429.7,2.62411]
[1732389799809,0.03553159,3430.1,3429.7,2.62411]
[1732389800371,0.03553159,3430.1,3429.5,3.01528]
[1732389800766,0.03553159,3430.1,3429.5,0.391]
[1732389800968,0.33341498,3430.0,3429.5,0.391]
[1732389801303,0.30763557,3429.9,3429.7,2.62413]
[1732389801512,0.27221243,3429.8,3429.5,0.391]
[1732389801817,0.30752711,3429.7,3429.6,2.62419]
[1732389802022,0.30752711,3429.7,3429.5,0.391]
[1732389802227,0.27221243,3429.6,3429.4,0.291]
[1732389802427,0.27221243,3429.5,3429.3,0.00303]
[1732389802630,0.27221243,3429.4,3429.3,0.00303]
[1732389802932,0.30735842,3429.4,3429.3,0.00303]
[1732389804945,0.307532,3429.4,3429.3,0.00303]
[1732389805118,0.03514599,3429.4,3429.3,0.00303]
[1732389805290,0.30752612,3429.4,3429.3,0.00303]
[1732389805490,0.27238013,3429.4,3429.3,0.00303]
[1732389805690,0.30752612,3429.4,3429.3,0.00303]
[1732389806090,3.83739973,3429.4,3429.3,0.00303]
[1732389806300,2.91613,3429.2,3429.1,0.00425]
[1732389806505,3.18851013,3429.2,3429.1,0.00425]
[1732389806706,3.22350512,3429.2,3429.1,0.00425]
[1732389807123,0.92132163,3429.2,3429.1,0.00425]
[1732389807516,0.30737512,3429.2,3429.1,0.00425]
[1732389808893,3.22350512,3429.2,3429.1,0.00425]
[1732389809700,0.30737512,3429.2,3429.1,0.00425]
[1732389810115,3.22350512,3429.2,3429.1,0.00425]
[1732389810841,0.30737512,3429.2,3429.1,0.00425]
[1732389811044,0.62971863,3429.2,3429.1,0.00425]
[1732389812124,0.30737512,3429.2,3428.7,1.2153]
[1732389812329,0.27238013,3429.1,3428.8,0.291]
[1732389812639,3.0,3430.3,3428.9,2.91574]
[1732389812640,0.27238013,3429.0,3428.9,2.91574]
[1732389813181,0.30723805,3429.0,3428.9,2.91574]
[1732389816125,0.30697098,3429.0,3428.9,2.91574]
[1732389816328,0.03485792,3429.0,3428.9,2.91574]
[1732389816530,0.27696323,3429.0,3428.9,2.91574]
[1732389816733,0.27210531,3429.0,3428.9,2.91574]
[1732389817274,0.30596323,3429.0,3428.9,2.91574]
[1732389819487,0.30596323,3429.0,3428.9,2.922022]
[1732389820077,0.27210531,3429.0,3428.9,2.922022]
[1732389820454,0.30595727,3429.0,3428.9,2.922022]
[1732389820834,0.30595727,3429.0,3428.9,0.297282]
[1732389821035,0.27210531,3429.0,3428.9,0.297282]
[1732389821240,0.30595727,3429.0,3428.9,0.297282]
[1732389821976,0.27210531,3429.0,3428.9,0.006282]
[1732389822185,0.30595727,3429.0,3428.9,0.006282]
[1732389823383,0.03385196,3429.0,3428.9,2.631022]
[1732389823548,0.30594965,3429.0,3428.9,0.006282]
[1732389823749,0.27209769,3429.0,3428.9,0.006282]
[1732389824085,0.30594965,3429.0,3428.9,0.006282]
[1732389825741,0.27209769,3429.0,3428.9,0.006282]
[1732389825942,0.30594965,3429.0,3428.9,0.006282]
[1732389826459,0.30594965,3429.0,3428.9,2.631022]
[1732389826853,0.27209769,3429.0,3428.9,2.631022]
[1732389827267,0.30594965,3429.0,3428.9,2.631022]
[1732389827763,0.30606146,3429.0,3428.9,2.631022]
[1732389828689,0.30606146,3429.0,3428.9,0.006282]
[1732389829966,0.62827261,3429.0,3428.9,0.006282]
[1732389831152,0.62827261,3429.0,3428.9,0.001512]
[1732389831568,0.59442065,3429.0,3428.9,0.001512]
[1732389831773,0.2722095,3429.0,3428.9,0.001512]
[1732389832054,0.30548921,3429.0,3428.9,2.626252]
[1732389832253,0.30548921,3429.0,3428.9,0.001512]
[1732389832452,0.2722095,3429.0,3428.9,0.001512]
[1732389832693,0.87349698,3429.0,3428.9,0.001512]
[1732389833956,1.21917997,3429.0,3428.9,0.001512]
[1732389834158,1.25245968,3429.0,3428.9,0.001512]
[1732389834692,0.87394029,3429.0,3428.9,0.001512]
[1732389834881,0.87394029,3429.0,3428.9,0.000322]
[1732389835277,0.87394029,3429.0,3428.6,2.62496]
[1732389835492,0.27265281,3428.9,3428.6,2.62496]
[1732389835754,0.27265281,3428.8,3428.6,2.62496]
[1732389835908,0.27265281,3428.7,3428.6,2.62496]
[1732389836060,0.30576974,3428.7,3428.5,2.62501]
[1732389836261,0.27265281,3428.6,3428.5,2.62501]
[1732389836564,0.30571547,3428.6,3428.5,2.62501]
[1732389837010,0.30571547,3428.6,3428.4,0.291]
[1732389837161,0.03306266,3428.6,3428.5,2.62505]
[1732389837366,0.27270095,3428.6,3428.5,2.62505]
[1732389837566,0.30576361,3428.6,3428.5,2.62505]
[1732389838181,0.27270095,3428.6,3428.5,2.62505]
[1732389838508,0.30576361,3428.6,3428.4,2.91612]
[1732389838808,0.03306266,3428.6,3428.4,0.291]
[1732389839121,0.5836058,3429.3,3428.0,0.291]
[1732389839122,0.27269037,3428.5,3428.0,0.291]
[1732389839264,2.91652,3428.8,3427.9,0.1]
[1732389839265,0.27269037,3428.4,3428.2,0.291]
[1732389839486,0.27269037,3428.4,3428.2,2.91627]
[1732389839487,0.27269037,3428.3,3428.2,2.91627]
[1732389839828,0.30556962,3428.3,3428.2,2.91627]
[1732389840181,0.30556962,3428.3,3428.2,3.70907]
[1732389840395,0.27269037,3428.3,3428.2,3.70907]
[1732389844076,0.27269037,3428.3,3428.2,3.69310064]
[1732389845528,0.55,3429.1,3428.2,1.06783064]
[1732389845718,0.27258879,3429.0,3428.4,2.62505]
[1732389845878,0.27258879,3428.9,3428.4,2.62505]
[1732389846076,0.73811562,3428.8,3428.5,2.62504]
[1732389846277,0.27258879,3428.7,3428.3,2.62516]
[1732389846482,0.27258879,3428.6,3428.2,3.69308064]
[1732389846682,0.27258879,3428.5,3428.2,2.90028064]
[1732389847026,0.27258879,3428.4,3428.2,2.90028064]
[1732389847228,0.0329672,3428.5,3428.2,2.90028064]
[1732389847229,0.27258879,3428.3,3428.2,2.90028064]
[1732389847530,0.30544744,3428.3,3428.2,2.90028064]
[1732389848734,0.03285865,3428.3,3428.2,2.90028064]
[1732389848947,0.27258956,3428.3,3428.2,2.90028064]
[1732389849234,0.30542894,3428.3,3428.2,2.90028064]
[1732389852043,0.30542894,3428.3,3428.2,3.00028064]
[1732389852200,6.46622,3429.1,3428.5,2.62503]
[1732389852401,0.62761569,3429.0,3428.5,2.62503]
[1732389852606,0.27261569,3428.9,3428.5,2.62503]
[1732389852826,0.30571378,3428.8,3428.5,2.62503]
[1732389853030,0.27261569,3428.7,3428.5,2.62503]
[1732389853306,0.30560525,3428.6,3428.3,2.6252]
[1732389853524,0.27261569,3428.5,3428.3,2.6252]
[1732389853729,0.27261569,3428.4,3428.3,2.6252]
[1732389854143,0.30549671,3428.4,3428.3,2.6252]
[1732389854355,0.30549671,3428.4,3428.2,2.62527]
[1732389854578,0.27261569,3428.3,3428.1,0.25906128]
[1732389854743,0.27261569,3428.2,3427.7,2.62563]
[1732389854943,0.27261569,3428.1,3427.8,2.62558]
[1732389855143,0.27261569,3428.0,3427.8,2.62558]
[1732389855348,0.27261569,3427.9,3427.8,2.62558]
[1732389855667,0.30520669,3427.9,3427.8,2.62558]
[1732389855975,0.30519226,3427.9,3427.8,2.62558]
[1732389856677,0.27260126,3427.9,3427.8,2.62558]
[1732389858271,0.30519226,3427.9,3427.8,2.62558]
[1732389858443,0.27260126,3427.9,3427.8,2.62558]
[1732389858648,0.27260126,3427.9,3427.6,2.72573]
[1732389858856,0.30513797,3427.8,3427.7,2.62564]
[1732389859028,0.30513797,3427.8,3427.5,0.291]
[1732389859235,0.27260126,3427.7,3427.5,0.291]
[1732389859474,2.91703,3428.2,3427.6,2.62574]
[1732389859771,4.06043427,3428.1,3427.5,2.91681]
[1732389859957,0.55,3428.1,3427.6,0.789]
[1732389860154,0.2725032,3428.0,3427.7,2.62566]
[1732389860334,0.2725032,3427.9,3427.7,2.62566]
[1732389860535,0.841691,3428.2,3427.7,2.62566]
[1732389860536,0.2725032,3427.8,3427.7,2.62566]
[1732389862463,0.2725032,3427.8,3427.6,0.789]
[1732389862464,0.30503991,3427.8,3427.6,3.41471]
[1732389862641,0.2725032,3427.7,3427.6,3.41471]
[1732389862842,0.30498561,3427.7,3427.6,3.41471]
[1732389863469,0.2725032,3427.7,3427.6,3.41471]
[1732389863654,0.2725032,3427.7,3427.6,2.62571]
[1732389863655,0.30498561,3427.7,3427.6,2.62571]
[1732389865051,0.2725032,3427.7,3427.6,3.41471]
[1732389865243,0.30494375,3427.7,3427.6,3.41471]
[1732389865644,0.30494375,3427.7,3427.6,2.62571]
[1732389867459,0.30494375,3427.7,3427.5,2.62581]
[1732389867649,0.2725032,3427.6,3427.5,2.62581]
[1732389867850,0.30488945,3427.6,3427.5,2.62581]
[1732389869398,0.30488945,3427.6,3427.5,2.91681]
[1732389870606,0.2725032,3427.6,3427.5,2.91681]
[1732389871005,0.304731,3427.6,3427.5,2.91681]
[1732389871363,0.30473118,3427.6,3427.5,2.91681]
[1732389872705,0.30473118,3427.6,3427.1,2.43428]
[1732389872909,0.27234493,3427.5,3427.3,2.33419]
[1732389873071,0.27234493,3427.4,3427.3,2.33419]
[1732389873271,0.30462257,3427.4,3427.3,2.33419]
[1732389874810,0.27234493,3427.4,3427.3,2.33419]
[1732389875171,0.30462257,3427.4,3427.3,2.33419]
[1732389878680,0.27234493,3427.4,3427.3,2.33419]
[1732389878886,0.30462257,3427.4,3427.3,2.33419]
[1732389879387,0.30462257,3427.4,3427.3,2.62519]
[1732389880633,0.27234493,3427.4,3427.3,2.62519]
[1732389881136,0.30460794,3427.4,3427.3,2.62519]
[1732389882448,0.03226301,3427.4,3427.3,2.62519]
[1732389882655,0.30474858,3427.4,3427.3,2.62519]
[1732389886212,0.27248557,3427.4,3427.3,2.62519]
[1732389886414,0.30424525,3427.4,3427.3,2.62519]
[1732389886835,0.27248557,3427.4,3427.3,2.62519]
[1732389887024,0.27248557,3427.4,3427.3,3.43419]
[1732389887239,0.27248557,3427.4,3427.3,3.53419]
[1732389887468,0.27248557,3427.4,3427.3,4.153129]
[1732389888921,0.27248557,3427.4,3427.3,4.12395353]
[1732389889518,0.55,3428.6,3428.1,2.33362]
[1732389889864,0.27261099,3428.5,3428.1,2.33362]
[1732389890035,0.27261099,3428.4,3428.1,2.33362]
[1732389890214,0.03128695,3428.5,3428.1,2.33362]
[1732389890215,0.27261099,3428.3,3428.1,2.33362]
[1732389890421,0.27261099,3428.2,3428.1,2.33362]
[1732389890824,0.30372913,3428.2,3428.1,2.33362]
[1732389893340,0.30363472,3428.2,3428.1,2.33362]
[1732389893542,0.03111814,3428.2,3428.1,2.33362]
[1732389893849,0.27249329,3428.2,3428.1,2.33362]
[1732389894054,0.30361143,3428.2,3428.1,2.33362]
[1732389896162,0.30361143,3428.2,3428.1,2.62462]
[1732389896163,0.27249329,3428.2,3428.1,2.62462]
[1732389899862,0.27249329,3428.2,3428.1,3.44203984]
[1732389901371,0.27249329,3428.2,3428.1,2.62462]
[1732389901729,0.27249329,3428.2,3427.8,0.291]
[1732389902068,0.58171228,3428.9,3427.8,2.3338]
[1732389902069,0.27249329,3428.1,3427.8,2.3338]
[1732389902231,0.27249329,3428.0,3427.8,2.3338]
[1732389902436,0.27249329,3427.9,3427.8,2.3338]
[1732389902738,0.30256439,3427.9,3427.8,2.3338]
[1732389903357,0.30234078,3427.9,3427.8,2.3338]
[1732389903767,0.30235956,3427.9,3427.8,2.3338]
[1732389905963,0.30235956,3427.9,3427.8,3.0867]
[1732389905964,0.27228846,3427.9,3427.8,3.0867]
[1732389906668,0.27228846,3427.9,3427.8,3.4777]
[1732389907040,0.55,3428.7,3428.1,2.33358]
[1732389907249,0.2722997,3428.6,3428.1,2.33358]
[1732389907468,0.2722997,3428.5,3428.1,2.33358]
[1732389907671,0.2722997,3428.4,3428.1,2.33358]
[1732389907830,0.2722997,3428.3,3428.2,2.33356]
[1732389908231,0.30254475,3428.3,3428.2,2.33356]
[1732389909072,0.30254475,3428.3,3427.9,2.33373]
[1732389909372,0.2722997,3428.2,3427.8,0.1]
[1732389909669,0.2722997,3428.1,3428.0,2.33368]
[1732389910034,0.3024455,3428.1,3428.0,2.33368]
[1732389910230,0.3024455,3428.1,3427.8,2.33385]
[1732389910433,0.2722997,3428.0,3427.8,2.33385]
[1732389910637,0.0301458,3428.1,3428.0,2.33372]
[1732389910832,0.27239801,3428.1,3428.0,2.33372]